bitfinex-derivatives/quotes_ETHF0:USTF0_20260226
["timestamp","ask_amount","ask_price","bid_price","bid_amount"]
[1772070613301,0.21104958,2058.7,2058.0,0.96561234]
[1772070613500,0.21104958,2058.6,2058.0,0.96561234]
[1772070613901,0.21097679,2058.5,2058.0,0.96561234]
[1772070614303,0.21145083,2058.8,2058.0,0.96561234]
[1772070615003,1.19285789,2058.8,2058.0,0.96561234]
[1772070615202,0.21145083,2058.8,2058.0,0.96561234]
[1772070616603,0.24666761,2058.9,2058.0,0.96561234]
[1772070616800,0.00384761,2058.9,2058.0,0.96561234]
[1772070617199,0.22329742,2058.5,2057.6,0.96561234]
[1772070617400,0.22329742,2058.4,2057.6,0.96561234]
[1772070617603,0.22329742,2058.2,2057.2,0.96561234]
[1772070617805,0.22329742,2057.9,2057.2,0.96561234]
[1772070618003,0.22827857,2058.1,2057.2,0.96561234]
[1772070618305,0.47115857,2058.3,2057.2,0.96561234]
[1772070618506,5.57092897,2058.2,2057.2,0.96561234]
[1772070618807,0.22827857,2058.2,2057.2,0.96561234]
[1772070619401,0.24288,2058.3,2057.2,0.96561234]
[1772070619603,0.47157294,2058.3,2057.4,0.96561234]
[1772070619802,5.57182431,2058.2,2057.4,0.96561234]
[1772070620004,0.47157294,2058.3,2057.4,0.96561234]
[1772070621009,0.24882247,2058.2,2057.4,0.96561234]
[1772070622605,1.23022953,2058.2,2057.4,0.96561234]
[1772070622809,0.24882247,2058.2,2057.4,0.96561234]
[1772070623001,0.25077317,2058.4,2057.4,0.96561234]
[1772070623208,6.367,2058.5,2057.4,0.96561234]
[1772070623407,5.56826175,2058.4,2057.4,0.96561234]
[1772070623606,6.61777317,2058.5,2057.4,0.96561234]
[1772070623804,5.56821017,2058.4,2057.4,0.96561234]
[1772070624010,6.61777317,2058.5,2057.4,0.96561234]
[1772070624708,6.367,2058.5,2057.6,0.96561234]
[1772070624906,0.27969211,2058.7,2057.6,0.96561234]
[1772070625106,5.56882688,2058.6,2057.6,0.96561234]
[1772070625308,0.27969211,2058.7,2057.6,0.96561234]
[1772070626414,1.26109917,2058.7,2057.6,0.96561234]
[1772070626614,6.61083,2058.8,2057.6,0.96561234]
[1772070626812,5.85082054,2058.7,2057.6,0.96561234]
[1772070627114,0.28059725,2058.6,2057.6,0.96561234]
[1772070627914,0.29215983,2058.5,2057.6,0.96561234]
[1772070628310,0.98140706,2058.2,2057.6,0.96561234]
[1772070628511,0.29255837,2058.1,2057.6,0.96561234]
[1772070628910,0.2925401,2057.9,2057.6,0.96561234]
[1772070629212,6.60987,2058.4,2057.6,0.96561234]
[1772070629412,0.29293688,2058.0,2057.6,0.96561234]
[1772070630014,1.27945612,2057.9,2057.6,0.96561234]
[1772070630210,0.29804906,2057.8,2057.4,0.96651226]
[1772070630413,0.98140706,2058.1,2057.4,0.96651226]
[1772070630607,0.29804906,2058.4,2057.4,0.96651226]
[1772070630809,0.29804906,2058.2,2057.4,0.96651226]
[1772070631515,1.27983811,2058.1,2057.4,0.96651226]
[1772070631905,0.98140706,2058.0,2057.4,0.96651226]
[1772070632114,0.29843105,2058.1,2057.4,0.96651226]
[1772070632517,0.98140706,2058.0,2057.4,0.96651226]
[1772070634211,0.29843105,2058.1,2057.4,0.96651226]
[1772070634715,0.98140706,2058.0,2057.4,0.96651226]
[1772070635215,0.98140706,2057.9,2057.4,0.96651226]
[1772070635410,0.29843105,2058.1,2057.4,0.96651226]
[1772070635910,0.98140706,2058.0,2057.4,0.96651226]
[1772070636107,0.29843105,2058.1,2057.4,0.96651226]
[1772070636312,0.98140706,2058.0,2057.4,0.96651226]
[1772070637318,0.98140706,2057.9,2057.4,0.96651226]
[1772070637519,0.29843105,2058.1,2057.4,0.96651226]
[1772070637814,6.367,2058.3,2057.4,0.96651226]
[1772070638120,0.29528662,2058.2,2057.4,0.96651226]
[1772070638822,1.27704368,2058.0,2057.4,0.96651226]
[1772070639115,1.27704368,2058.0,2057.2,0.92782802]
[1772070639116,0.29563662,2058.0,2057.2,0.92782802]
[1772070639321,0.29596827,2057.6,2057.2,0.92782802]
[1772070640322,0.29784011,2057.8,2057.2,0.92782802]
[1772070640619,0.95526811,2058.0,2057.2,0.92782802]
[1772070643918,6.367,2058.3,2057.2,0.92782802]
[1772070644114,0.95526811,2058.1,2057.2,0.92782802]
[1772070657228,6.60432,2058.0,2057.2,0.92782802]
[1772070657526,1.24412836,2058.2,2057.4,0.98774688]
[1772070657726,6.60427147,2058.1,2057.4,0.98774688]
[1772070657930,1.00122836,2058.1,2057.4,0.98774688]
[1772070658326,1.00122836,2058.1,2057.5,1.37766673]
[1772070658528,1.00122836,2058.3,2057.8,0.98774688]
[1772070660631,1.00122836,2057.9,2057.4,0.98774688]
[1772070661734,1.00122836,2058.0,2057.4,0.98774688]
[1772070665941,1.00122836,2058.3,2057.8,0.98774688]
[1772070668037,1.00122836,2058.5,2057.8,0.98774688]
[1772070669236,1.00122836,2058.8,2058.2,0.98774688]
[1772070670043,1.00122836,2058.7,2058.2,0.98774688]
[1772070670240,1.00122836,2058.5,2057.8,0.98774688]
[1772070671433,2.37889509,2058.8,2057.8,0.98774688]
[1772070671640,1.00122836,2058.7,2057.8,0.98774688]
[1772070672941,1.00122836,2058.5,2057.8,0.98774688]
[1772070679545,1.00122836,2058.8,2057.9,0.98774688]
[1772070681248,1.00122836,2058.6,2057.9,0.98774688]
[1772070682248,1.00122836,2058.6,2057.7,0.98774688]
[1772070693368,0.99048551,2058.8,2057.7,0.98774688]
[1772070694265,6.60996743,2058.7,2057.7,0.98774688]
[1772070694464,0.99048551,2058.7,2057.7,0.98774688]
[1772070699271,0.00384761,2058.9,2058.0,0.95354689]
[1772070699472,0.00384761,2058.9,2058.2,0.95354689]
[1772070699672,0.99048551,2059.2,2058.2,0.95354689]
[1772070699867,0.99048551,2059.4,2058.3,0.95354689]
[1772070700171,0.99048551,2059.4,2058.4,0.95354689]
[1772070700672,0.00520283,2059.4,2058.6,0.95354689]
[1772070700972,1.32239971,2059.5,2058.8,0.95354689]
[1772070701773,0.00585072,2059.5,2058.8,0.95883989]
[1772070702262,0.99048551,2060.6,2059.1,0.24279]
[1772070702467,6.59337134,2060.5,2059.3,0.95354689]
[1772070702672,0.99048551,2060.7,2059.3,0.95354689]
[1772070702972,0.99048551,2060.6,2059.5,0.95354689]
[1772070703373,0.99403721,2060.6,2059.5,0.95354689]
[1772070706668,0.0035517,2060.6,2059.5,0.95354689]
[1772070706868,0.99403721,2060.6,2059.5,0.95354689]
[1772070708972,0.0035517,2060.6,2059.7,0.95354689]
[1772070709178,0.0035517,2060.6,2059.9,0.95354689]
[1772070709772,0.99403721,2060.6,2059.9,0.95354689]
[1772070710474,0.0035517,2060.6,2059.9,0.95354689]
[1772070715675,0.97976845,2060.6,2059.9,0.95354689]
[1772070716277,0.97976845,2060.6,2059.5,6.60473]
[1772070716476,0.97621675,2060.0,2059.3,0.96757367]
[1772070719176,0.97621675,2060.0,2059.2,6.361]
[1772070719382,0.97621675,2060.0,2059.1,0.96757367]
[1772070725983,0.97621675,2060.1,2059.1,0.96757367]
[1772070731386,0.97621675,2059.9,2059.1,0.96757367]
[1772070731591,0.97621675,2059.7,2059.0,0.96757367]
[1772070731786,0.97621675,2059.5,2058.9,0.96757367]
[1772070732295,0.97621675,2060.0,2058.9,0.96757367]
[1772070740994,0.97621675,2059.8,2058.9,0.96757367]
[1772070741601,0.97621675,2059.6,2058.8,0.97286667]
[1772070741803,0.97621675,2059.5,2058.8,0.97286667]
[1772070743807,0.97621675,2059.3,2058.5,0.96757367]
[1772070744006,0.97621675,2059.1,2058.0,0.96757367]
[1772070744299,0.97621675,2058.9,2058.0,0.96757367]
[1772070745002,0.97621675,2058.7,2058.0,0.00583697]
[1772070745400,0.97621675,2058.7,2058.0,0.97341064]
[1772070747308,0.94544132,2058.9,2058.0,0.97341064]
[1772070748000,0.00563947,2058.9,2058.0,2.95377092]
[1772070748204,0.00563947,2058.9,2058.1,0.95652736]
[1772070748895,0.94544132,2058.9,2058.1,0.95652736]
[1772070749601,0.93980185,2058.3,2057.7,0.95652736]
[1772070749906,0.93980185,2058.1,2057.3,0.95652736]
[1772070750105,0.93980185,2058.0,2056.8,0.95652736]
[1772070750706,0.93980185,2058.0,2056.8,0.96225564]
[1772070752305,0.93980185,2058.0,2057.0,1.03577026]
[1772070753804,0.93980185,2058.0,2056.8,1.04149854]
[1772070761622,0.96892064,2058.2,2057.4,1.03577026]
[1772070762114,0.96892064,2058.1,2057.2,1.03577026]
[1772070765320,6.367,2058.3,2057.2,1.03577026]
[1772070765514,0.96892064,2058.2,2057.2,1.03577026]
[1772070767010,6.367,2058.3,2057.2,1.03577026]
[1772070767211,7.33592064,2058.3,2057.2,1.03577026]
[1772070767412,0.96892064,2058.2,2057.2,1.03577026]
[1772070774924,0.96892064,2058.0,2057.2,1.03577026]
[1772070779319,5.64206633,2057.9,2057.2,1.03577026]
[1772070779524,1.04323079,2057.8,2057.2,1.03577026]
[1772070781622,1.04323079,2057.8,2057.1,0.9873446]
[1772070782726,1.04323079,2058.1,2057.1,0.9873446]
[1772070783030,1.04323079,2058.3,2057.4,0.9873446]
[1772070783227,1.04323079,2058.1,2057.4,0.9873446]
[1772070785028,1.04323079,2058.3,2057.4,0.9873446]
[1772070786126,7.41023079,2058.5,2057.4,0.9873446]
[1772070787027,1.04323079,2058.4,2057.4,0.9873446]
[1772070788534,1.04323079,2058.6,2057.6,0.9873446]
[1772070790538,1.04323079,2058.6,2057.7,0.9873446]
[1772070793840,1.28608079,2058.6,2057.7,0.9873446]
[1772070794047,1.04323079,2058.4,2057.6,0.9873446]
[1772070795046,1.04323079,2058.3,2057.2,0.9873446]
[1772070801248,1.04323079,2058.7,2057.4,0.9873446]
[1772070801439,1.04323079,2058.7,2057.4,1.2303346]
[1772070801749,1.28607079,2058.7,2057.6,0.9873446]
[1772070802149,1.04323079,2058.6,2057.6,0.9873446]
[1772070803449,1.04323079,2058.4,2057.6,0.9873446]
[1772070803944,1.04323079,2058.3,2057.6,0.9873446]
[1772070804749,1.04323079,2058.6,2057.6,0.9873446]
[1772070807247,1.03081548,2058.5,2057.6,0.9873446]
[1772070808247,1.03081548,2058.4,2057.6,0.9873446]
[1772070808648,1.03081548,2058.1,2057.6,0.9873446]
[1772070808953,1.03081548,2058.1,2057.5,1.04698911]
[1772070809452,1.03081548,2057.9,2057.5,1.04698911]
[1772070810246,41.04283,2058.8,2057.5,1.04698911]
[1772070810450,1.03081548,2058.3,2057.5,1.04698911]
[1772070813955,1.05205846,2058.1,2057.5,1.04698911]
[1772070814852,1.05205846,2058.2,2057.5,1.04698911]
[1772070816758,3.48165846,2058.2,2057.5,1.04698911]
[1772070816954,1.05205846,2058.1,2057.5,1.04698911]
[1772070817252,1.58071853,2058.2,2057.5,1.04698911]
[1772070817459,1.05205846,2058.4,2057.5,1.04698911]
[1772070817957,1.05205846,2058.4,2057.6,0.98230567]
[1772070819859,2.63277699,2058.4,2057.6,0.98230567]
[1772070820158,1.05205846,2058.4,2057.6,0.98230567]
[1772070821858,2.63277699,2058.4,2057.6,0.98230567]
[1772070822158,1.05205846,2058.7,2057.8,0.98230567]
[1772070822361,1.05205846,2058.7,2058.0,0.98230567]
[1772070822961,1.58071853,2058.6,2058.0,0.98230567]
[1772070824664,1.58071853,2058.5,2058.0,0.98230567]
[1772070824864,1.05205846,2058.7,2058.0,0.98230567]
[1772070825359,1.58071853,2058.6,2058.0,0.98230567]
[1772070825764,1.58071853,2058.5,2058.0,0.98230567]
[1772070825954,1.05205846,2058.7,2058.0,0.98230567]
[1772070826159,1.58071853,2058.6,2058.0,0.98230567]
[1772070826360,1.05205846,2058.7,2058.0,0.98230567]
[1772070826660,1.58071853,2058.6,2058.0,0.98230567]
[1772070826860,1.05205846,2058.7,2058.0,0.98230567]
[1772070827265,1.58071853,2058.6,2058.0,0.98230567]
[1772070827466,1.05205846,2058.7,2058.0,0.98230567]
[1772070827661,1.58071853,2058.5,2058.0,0.98230567]
[1772070828062,1.05205846,2058.7,2058.0,0.98230567]
[1772070828261,1.58071853,2058.5,2058.0,0.98230567]
[1772070828664,1.05205846,2058.7,2058.0,0.98230567]
[1772070828859,1.58071853,2058.5,2058.0,0.98230567]
[1772070829364,1.58071853,2058.4,2058.0,0.98230567]
[1772070829565,1.05205846,2058.6,2058.0,0.98230567]
[1772070829765,1.58071853,2058.5,2058.0,0.98230567]
[1772070829965,1.05205846,2058.6,2058.0,0.98230567]
[1772070830466,1.58071853,2058.4,2058.0,0.98230567]
[1772070830659,1.05205846,2058.6,2058.0,0.98230567]
[1772070830865,1.58071853,2058.4,2058.0,0.98230567]
[1772070831268,1.05205846,2058.6,2058.0,0.98230567]
[1772070831869,1.58071853,2058.4,2058.0,0.98230567]
[1772070832367,1.05205846,2058.6,2058.0,0.98230567]
[1772070833564,1.05205846,2058.8,2058.0,0.98230567]
[1772070839971,1.05205846,2058.8,2058.0,1.03325356]
[1772070841073,1.29487846,2058.8,2057.8,1.03325356]
[1772070844375,0.7272217,2058.0,2057.3,4.10666304]
[1772070844573,6.22688531,2057.9,2057.1,1.06201318]
[1772070844871,5.58262727,2057.8,2057.1,1.06201318]
[1772070845178,0.00157676,2057.6,2057.1,1.06201318]
[1772070846372,0.00157676,2057.6,2056.9,1.06957966]
[1772070846775,1.37829964,2057.4,2056.8,0.00572828]
[1772070847078,1.37829964,2057.2,2056.5,1.06957966]
[1772070847278,0.00437726,2057.4,2056.5,1.06957966]
[1772070847885,0.00437726,2057.4,2056.5,1.07452391]
[1772070849175,0.00084718,2057.3,2056.5,1.07452391]
[1772070850881,0.00437726,2057.4,2056.5,1.07452391]
[1772070851080,0.00921082,2057.4,2056.5,1.07452391]
[1772070851286,0.00483356,2057.3,2056.5,1.07452391]
[1772070864094,0.10402551,2056.8,2056.2,1.03325356]
[1772070864495,0.10402551,2056.9,2056.2,1.03325356]
[1772070865488,0.10402551,2056.9,2056.2,1.03807932]
[1772070865888,0.10682143,2057.1,2056.2,1.03807932]
[1772070868095,0.15384126,2057.0,2056.2,1.03807932]
[1772070868298,0.15505987,2057.2,2056.2,1.03807932]
[1772070873197,5.95412668,2057.1,2056.2,1.03807932]
[1772070873397,0.17507587,2057.1,2056.2,1.03807932]
[1772070874196,5.96148574,2057.0,2056.2,1.03807932]
[1772070874400,0.17713039,2057.0,2056.2,1.03807932]
[1772070875202,5.96422887,2056.9,2056.2,1.03807932]
[1772070875502,0.1781721,2056.9,2056.2,1.03807932]
[1772070877609,5.94957456,2056.8,2056.2,1.03807932]
[1772070877904,0.16160285,2056.8,2056.2,1.03807932]
[1772070881012,0.17742467,2056.9,2056.2,1.03807932]
[1772070881213,5.78936707,2056.8,2056.2,1.03807932]
[1772070881512,0.17742467,2056.9,2056.2,1.03807932]
[1772070881713,10.37896284,2057.0,2056.2,1.03807932]
[1772070881714,5.79092468,2056.8,2056.2,1.03807932]
[1772070881915,6.367,2057.0,2056.2,1.03807932]
[1772070882110,5.79229577,2056.9,2056.2,1.03807932]
[1772070882310,5.79229577,2056.8,2056.2,1.03807932]
[1772070882510,6.5415575,2057.0,2056.2,1.03807932]
[1772070882812,5.79317171,2056.9,2056.2,1.03807932]
[1772070883010,5.79317171,2056.8,2056.2,1.03807932]
[1772070883213,1.37922486,2056.9,2056.2,1.03807932]
[1772070883513,5.79338899,2056.8,2056.2,1.03807932]
[1772070883715,1.37922486,2056.9,2056.2,1.03807932]
[1772070883914,5.79338063,2056.8,2056.2,1.03807932]
[1772070884114,1.37922486,2056.9,2056.2,1.03807932]
[1772070884414,5.79494575,2056.8,2056.2,1.03807932]
[1772070884713,1.37922486,2056.9,2056.2,1.03807932]
[1772070884911,0.29537216,2056.8,2056.4,1.37922486]
[1772070885215,0.00437726,2057.4,2056.7,0.00417858]
[1772070885916,0.00437726,2057.4,2056.9,0.00417858]
[1772070886512,1.08903809,2057.7,2057.1,0.07001565]
[1772070887414,1.0927003,2057.7,2057.1,0.07001565]
[1772070899125,0.00366221,2057.7,2057.1,0.07001565]
[1772070899314,1.21701617,2058.0,2057.1,0.07001565]
[1772070900319,1.22136378,2058.0,2057.1,0.07001565]
[1772070903616,1.22136378,2058.0,2056.9,6.61105]
[1772070904322,1.22136378,2058.0,2057.1,1.98430914]
[1772070904521,0.00434761,2058.0,2057.1,1.98430914]
[1772070904717,0.00434761,2058.0,2057.2,5.1345526]
[1772070905320,1.21127106,2058.3,2057.4,1.98430914]
[1772070905724,1.21127106,2058.3,2057.3,0.243]
[1772070906425,1.21535164,2058.3,2057.3,0.243]
[1772070909822,15.88889501,2060.0,2057.3,0.243]
[1772070909823,1.20287269,2058.6,2057.7,1.98430914]
[1772070910027,1.19773297,2059.5,2058.0,1.98430914]
[1772070910926,1.20369391,2059.5,2058.0,1.98843523]
[1772070911724,1.20369391,2059.5,2058.1,5.41168022]
[1772070915318,1.20369391,2059.5,2058.3,1.98430914]
[1772070915524,1.20369391,2059.5,2058.4,6.367]
[1772070919226,1.21390881,2059.3,2058.0,6.37012609]
[1772070920925,1.2173145,2059.0,2058.0,6.37012609]
[1772070922924,1.2173145,2059.0,2058.1,5.34714087]
[1772070923230,1.21761498,2059.4,2058.1,5.34714087]
[1772070924527,1.21761498,2059.4,2058.1,5.59004087]
[1772070926132,1.21761498,2059.4,2058.1,13.19956499]
[1772070928237,0.00596094,2059.5,2058.5,0.24286]
[1772070928434,0.00596094,2059.5,2058.6,6.365]
[1772070928636,0.00596094,2059.5,2058.6,11.78435906]
[1772070931837,1.19301777,2059.9,2058.7,2.22517651]
[1772070932037,1.19301777,2059.9,2058.7,9.83470063]
[1772070932231,1.19301777,2059.9,2058.8,5.29963654]
[1772070932737,1.19728902,2059.9,2058.8,5.29963654]
[1772070934234,1.19728902,2059.9,2058.9,6.364]
[1772070936240,0.24271,2059.8,2058.9,6.364]
[1772070936544,1.20784674,2059.7,2058.9,6.364]
[1772070941948,1.21351499,2059.9,2058.9,6.364]
[1772070942648,0.00427125,2059.9,2059.0,5.8781773]
[1772070943952,1.21367043,2059.9,2059.0,5.8781773]
[1772070944746,1.21350077,2059.9,2059.0,5.6353773]
[1772070944948,1.21350077,2059.9,2058.9,6.60681]
[1772070945747,1.21350077,2059.9,2059.0,7.60952412]
[1772070945941,1.21350077,2059.9,2059.0,13.10228365]
[1772070946147,1.21350077,2059.9,2059.0,5.49275953]
[1772070946541,1.21350077,2059.9,2059.0,13.10228365]
[1772070949253,1.21350077,2059.9,2059.0,7.60952412]
[1772070952259,1.21350077,2059.9,2059.1,7.60952412]
[1772070952457,1.21350077,2059.9,2059.0,7.60952412]
[1772070955563,1.21350077,2059.9,2059.1,7.60952412]
[1772070955764,1.21350077,2059.9,2059.0,7.60952412]
[1772070956163,1.21350077,2059.9,2059.1,7.60952412]
[1772070958165,1.21350077,2059.9,2059.2,7.60952412]
[1772070958365,1.21350077,2059.9,2059.3,6.362]
[1772070960562,1.45620077,2059.9,2059.1,7.60952412]
[1772070960867,1.45620077,2059.9,2058.9,13.97152412]
[1772070961263,0.00427125,2059.9,2059.1,7.60952412]
[1772070961468,0.00427125,2059.9,2059.2,13.97152412]
[1772070961767,1.23203649,2059.9,2059.2,13.97152412]
[1772070962668,0.00427125,2059.9,2059.2,13.97152412]
[1772070962865,1.22689951,2060.6,2059.5,0.24274]
[1772070963067,1.22689951,2061.1,2059.8,0.24271]
[1772070963264,1.22689951,2061.1,2059.9,6.362]
[1772070963460,1.22693959,2060.9,2059.9,6.362]
[1772070963960,1.2323475,2060.9,2059.9,6.3680296]
[1772070965567,1.20494751,2061.6,2060.0,11.28311844]
[1772070965763,1.20494751,2061.6,2060.4,7.60952412]
[1772070965969,1.20494751,2061.6,2060.5,6.361]
[1772070966170,1.20494751,2061.6,2060.6,6.361]
[1772070966364,1.20494751,2061.6,2060.6,6.40225547]
[1772070966769,1.20848012,2061.6,2060.6,6.40225547]
[1772070966970,1.20848012,2061.6,2060.7,0.04125547]
[1772070967272,1.20848012,2061.6,2060.7,6.40225547]
[1772070967570,1.20848012,2061.6,2060.8,0.04266091]
[1772070967767,1.20848012,2061.6,2060.7,6.361]
[1772070968861,1.18015748,2061.4,2060.3,0.04058796]
[1772070969172,1.18016739,2061.2,2060.0,0.04195492]
[1772070969764,1.18016739,2061.0,2059.9,6.3670296]
[1772070970268,1.18403745,2060.8,2059.9,0.0060296]
[1772070970669,1.18403745,2060.6,2059.9,0.0060296]
[1772070971068,1.18403745,2060.6,2059.5,6.39557382]
[1772070971771,0.24262,2060.5,2059.3,0.03691538]
[1772070971969,1.18404921,2060.4,2059.3,0.04245774]
[1772070975576,1.17489007,2060.9,2059.4,0.1480981]
[1772070975878,1.17489007,2060.9,2059.7,0.1480981]
[1772070976174,1.17489007,2060.9,2059.9,0.1480981]
[1772070977574,1.17489007,2061.4,2060.1,0.15250576]
[1772070980972,1.17489007,2061.2,2060.1,0.15250576]
[1772070982979,1.17489007,2061.2,2059.9,0.16553723]
[1772070983576,1.17489007,2060.8,2059.8,6.52677611]
[1772070984176,1.17489007,2060.8,2059.8,6.36]
[1772070985080,1.17489007,2060.8,2059.8,6.52627982]
[1772070988581,1.17489007,2060.8,2059.9,0.23811129]
[1772070989483,1.20060086,2060.6,2059.6,0.23927963]
[1772070991883,1.20060086,2061.0,2060.0,0.24602958]
[1772070992082,1.20060086,2061.0,2060.1,0.24602958]
[1772070997690,1.38141477,2060.9,2059.6,14.18390986]
[1772070997991,1.38141477,2060.9,2059.6,6.57438574]
[1772070998290,1.38141477,2060.9,2059.7,0.2157952]
[1772070999092,1.13883477,2060.6,2059.6,6.359]
[1772070999292,1.13883477,2060.6,2059.6,6.57580901]
[1772071000690,1.13883477,2060.6,2059.7,0.3026394]
[1772071000992,1.13883477,2060.6,2059.6,6.6616394]
[1772071001191,1.13883477,2060.4,2059.4,0.30368282]
[1772071002791,1.13883477,2060.2,2059.3,0.00554236]
[1772071003095,1.13883477,2060.2,2059.3,0.28479972]
[1772071004595,1.13883477,2060.2,2059.5,0.28276102]
[1772071007002,1.13883477,2060.7,2059.5,0.28276102]
[1772071011600,1.13883477,2060.7,2059.6,0.31753716]
[1772071012901,1.13883477,2060.7,2059.7,0.32023722]
[1772071014708,1.13883477,2060.7,2059.6,7.9478722]
[1772071015001,1.13883477,2060.7,2059.6,0.33834808]
[1772071016008,1.11386142,2060.5,2059.5,7.94584398]
[1772071017307,1.11386142,2060.5,2059.5,0.33631986]
[1772071020911,1.11386142,2060.5,2059.4,13.96952412]
[1772071021112,1.11386142,2060.3,2059.4,6.36]
[1772071021317,1.11386142,2060.3,2059.4,6.66213171]
[1772071021516,1.11386142,2060.2,2059.4,6.66213171]
[1772071021718,1.11386142,2060.2,2059.4,6.36]
[1772071022517,1.11386142,2060.2,2059.4,6.65887744]
[1772071022718,1.11386142,2060.2,2059.5,0.29887744]
[1772071027723,1.11386142,2060.2,2059.4,14.26034193]
[1772071028022,1.11386142,2060.2,2059.4,6.65081781]
[1772071028426,1.11386142,2060.2,2059.4,6.36]
[1772071028923,1.11386142,2060.1,2059.4,6.36]
[1772071029126,1.11776814,2060.1,2059.4,6.36]
[1772071029432,1.11386142,2059.9,2059.0,7.89512087]
[1772071029722,1.11386142,2059.9,2059.0,0.28559675]
[1772071030526,1.11386142,2059.9,2059.2,0.29586785]
[1772071030722,1.11386142,2059.9,2059.4,0.29586785]
[1772071032125,1.11776814,2060.1,2059.4,0.29586785]
[1772071036321,1.11776814,2060.1,2059.5,6.361]
[1772071036628,1.11776814,2060.1,2059.6,0.32382811]
[1772071045434,1.11386142,2060.3,2059.6,0.32382811]
[1772071046027,1.11386142,2060.3,2059.5,6.361]
[1772071046228,1.11386142,2060.3,2059.5,6.66134352]
[1772071046432,1.11782745,2060.3,2059.5,6.66134352]
[1772071050330,1.11782745,2060.3,2059.2,0.24277]
[1772071050331,5.71319008,2060.2,2059.2,0.28915046]
[1772071050529,1.17419728,2060.2,2059.4,0.28915046]
[1772071054745,1.09563503,2060.3,2059.4,0.28915046]
[1772071055338,6.06398241,2060.9,2059.7,0.27282376]
[1772071055339,1.091669,2060.5,2059.7,0.27282376]
[1772071055643,1.091669,2060.5,2059.9,0.27282376]
[1772071056337,1.09646981,2060.5,2059.9,0.27282376]
[1772071056845,1.09646981,2060.5,2059.5,0.54053196]
[1772071057047,1.09646981,2060.5,2059.6,6.65879196]
[1772071057341,1.09646981,2060.5,2059.6,6.361]
[1772071057747,1.09646981,2060.5,2059.6,6.65636639]
[1772071058745,1.09646981,2060.5,2059.7,0.27308039]
[1772071063751,1.09646981,2060.5,2059.7,0.27820373]
[1772071064946,1.33909981,2060.5,2059.6,6.361]
[1772071068153,1.091669,2060.3,2059.6,6.361]
[1772071068650,1.091669,2060.1,2059.2,1.06125837]
[1772071068851,1.334339,2060.1,2059.0,0.00551072]
[1772071069154,1.091669,2059.9,2059.0,0.00551072]
[1772071069555,1.091669,2059.9,2059.0,1.06676909]
[1772071080464,1.091669,2059.9,2059.1,1.11851065]
[1772071085269,1.04609094,2059.8,2059.1,1.11851065]
[1772071087476,1.04609094,2059.4,2059.0,0.00551072]
[1772071087677,1.04609094,2059.4,2058.7,1.11851065]
[1772071088777,1.04609094,2059.7,2059.0,1.11851065]
[1772071089077,1.04609094,2059.5,2058.8,1.11851065]
[1772071104685,1.04609094,2059.4,2058.8,1.11851065]
[1772071112990,1.04609094,2059.4,2059.0,1.09449754]
[1772071114195,1.03470137,2059.0,2058.7,0.0047304]
[1772071114492,1.0409304,2059.0,2058.5,1.09449754]
[1772071115293,0.00622903,2059.0,2058.5,1.09828651]
[1772071122490,1.03470137,2058.9,2058.5,0.00378897]
[1772071122690,1.03470137,2058.8,2058.4,1.09449754]
[1772071123387,1.0409304,2059.0,2058.5,1.09449754]
[1772071123694,0.00622903,2059.0,2058.7,1.09449754]
[1772071123895,1.03470137,2059.2,2058.7,1.09449754]
[1772071124094,1.03470137,2059.4,2058.9,1.09449754]
[1772071124887,1.0388969,2059.4,2058.9,1.09449754]
[1772071129898,1.03470137,2059.8,2059.3,1.09449754]
[1772071130594,1.03470137,2059.6,2059.1,1.09449754]
[1772071130798,1.03470137,2059.6,2059.0,6.364]
[1772071130799,1.03470137,2059.6,2059.0,7.45849754]
[1772071130996,1.03934415,2059.6,2059.1,1.09449754]
[1772071131198,0.40054164,2059.6,2059.1,1.09449754]
[1772071138011,0.72231185,2059.4,2058.8,1.02848535]
[1772071141915,0.75381453,2059.0,2058.5,1.03437417]
[1772071142416,0.74417913,2059.4,2058.7,1.02848535]
[1772071142617,0.74417913,2059.4,2058.9,1.02848535]
[1772071147318,0.74417913,2059.4,2058.7,1.02848535]
[1772071147518,0.73106473,2059.2,2058.7,1.02848535]
[1772071148116,0.73106473,2059.0,2058.5,1.03437417]
[1772071150012,0.73042421,2059.4,2058.9,1.02848535]
[1772071150219,0.74287228,2059.6,2059.2,1.02848535]
[1772071150919,0.74287228,2059.6,2059.0,1.02848535]
[1772071154016,2.11842369,2059.6,2059.0,1.02848535]
[1772071154220,0.71833043,2059.3,2058.9,1.02848535]
[1772071154618,1.37555141,2059.4,2058.9,1.02848535]
[1772071154818,2.09492497,2059.4,2058.9,1.02848535]
[1772071156022,0.71902999,2059.3,2058.9,1.02848535]
[1772071156717,2.12669744,2059.4,2058.9,1.02848535]
[1772071156922,0.75114603,2059.4,2058.9,1.02848535]
[1772071159324,0.74850471,2059.3,2058.9,1.02848535]
[1772071159818,0.74850471,2059.1,2058.7,1.02848535]
[1772071166427,0.74850471,2059.1,2058.5,0.00588882]
[1772071167130,0.74850471,2059.1,2058.5,1.07356057]
[1772071168727,0.76983962,2058.9,2058.4,1.06767175]
[1772071169832,0.76983962,2058.9,2058.4,1.07324332]
[1772071174841,0.76983962,2058.9,2058.4,0.00557157]
[1772071175140,1.03905688,2058.4,2057.9,1.07839978]
[1772071175940,1.03905688,2058.4,2057.9,1.08462827]
[1772071177232,1.03905688,2058.6,2057.9,1.08462827]
[1772071179141,1.03905688,2058.2,2057.7,1.07839978]
[1772071180134,1.03905688,2058.2,2057.7,1.08304047]
[1772071181646,1.03905688,2058.3,2057.7,1.08304047]
[1772071184242,1.03905688,2058.4,2057.7,1.08304047]
[1772071184547,1.03905688,2058.3,2057.7,1.08304047]
[1772071189851,1.03905688,2058.5,2057.7,1.08304047]
[1772071190045,1.03905688,2058.6,2057.7,1.08304047]
[1772071192953,6.364,2058.7,2057.9,1.07839978]
[1772071192954,7.40305688,2058.7,2057.9,1.07839978]
[1772071193154,1.03905688,2058.7,2057.9,1.07839978]
[1772071198750,1.09623117,2058.9,2057.9,1.07839978]
[1772071198954,1.09623117,2059.1,2058.1,1.09808697]
[1772071199254,1.09623117,2058.9,2058.1,1.09808697]
[1772071200556,1.09623117,2059.0,2058.1,1.09808697]
[1772071200759,1.09623117,2059.0,2058.3,1.09808697]
[1772071202557,7.46123117,2059.2,2058.3,1.09808697]
[1772071202958,1.09623117,2059.1,2058.3,1.09808697]
[1772071204455,1.09623117,2059.0,2058.1,1.09808697]
[1772071204856,1.09623117,2059.0,2058.2,1.37619125]
[1772071205150,1.09623117,2059.1,2058.3,1.09808697]
[1772071206158,1.09623117,2059.1,2058.5,1.09808697]
[1772071208758,1.09623117,2058.8,2058.1,1.09808697]
[1772071209356,1.09623117,2059.0,2058.1,1.09808697]
[1772071210454,1.09623117,2059.4,2058.4,1.09808697]
[1772071210652,1.09623117,2059.2,2058.4,1.09808697]
[1772071213164,1.09623117,2059.4,2058.7,1.09808697]
[1772071215459,0.00464278,2059.6,2058.9,1.09808697]
[1772071215658,1.10087395,2059.6,2058.9,1.09808697]